bitfinex/quotes_BTCUSD_20250423
["timestamp","ask_amount","ask_price","bid_price","bid_amount"]
[1745430283903,0.04032652,93734.0,93733.0,0.66692929]
[1745430284369,0.04032652,93734.0,93733.0,0.76512929]
[1745430285266,0.04332652,93734.0,93733.0,0.76512929]
[1745430285621,0.09322652,93734.0,93733.0,0.76512929]
[1745430288195,0.09322652,93734.0,93733.0,0.44486713]
[1745430288196,0.09422652,93734.0,93733.0,0.44486713]
[1745430288415,0.09422652,93734.0,93733.0,0.10486713]
[1745430288625,0.09422652,93734.0,93733.0,0.0982]
[1745430291513,0.00813918,93734.0,93722.0,0.34]
[1745430291723,0.0954,93727.0,93722.0,0.10689014]
[1745430291947,0.0954,93726.0,93722.0,0.10689014]
[1745430292181,0.0954,93731.0,93722.0,0.10689014]
[1745430292393,0.00813918,93734.0,93722.0,0.10689014]
[1745430292394,0.0954,93727.0,93722.0,0.10689014]
[1745430292587,0.0464,93726.0,93723.0,0.34]
[1745430293761,0.0464,93726.0,93724.0,0.0066623]
[1745430294104,0.045,93725.0,93724.0,0.0066623]
[1745430294415,0.0906,93725.0,93724.0,0.0066623]
[1745430294949,0.0906,93725.0,93724.0,0.22005481]
[1745430295153,0.0906,93725.0,93724.0,0.0066623]
[1745430295578,0.0916,93725.0,93723.0,0.34]
[1745430295791,0.0936,93725.0,93723.0,0.34]
[1745430296433,0.0926,93725.0,93724.0,0.21339251]
[1745430297446,0.0926,93725.0,93723.0,0.55339478]
[1745430297656,0.0946,93725.0,93723.0,0.55339478]
[1745430298416,0.0926,93725.0,93723.0,0.55339478]
[1745430298614,0.0926,93725.0,93724.0,0.21339251]
[1745430298928,0.0946,93725.0,93723.0,0.34]
[1745430299411,0.0946,93725.0,93723.0,0.5533936]
[1745430299584,0.0906,93725.0,93723.0,0.5533936]
[1745430299792,0.0906,93725.0,93724.0,0.21339251]
[1745430300015,0.0906,93725.0,93723.0,0.34]
[1745430300230,0.0936,93725.0,93723.0,0.55339422]
[1745430300458,0.0936,93725.0,93723.0,0.34]
[1745430300909,0.0926,93725.0,93723.0,0.55339468]
[1745430301125,0.0936,93725.0,93723.0,0.34]
[1745430301330,0.0949,93724.0,93723.0,0.34]
[1745430301765,0.0949,93724.0,93718.0,0.0106703]
[1745430301937,0.0949,93724.0,93719.0,0.35067019]
[1745430302173,0.0949,93724.0,93720.0,0.22407028]
[1745430302411,0.0949,93724.0,93721.0,0.56406844]
[1745430302659,0.0949,93724.0,93723.0,0.55339479]
[1745430302879,0.0969,93724.0,93723.0,0.55339479]
[1745430303316,0.0969,93724.0,93723.0,0.5600569]
[1745430303522,0.0999,93724.0,93723.0,0.56807431]
[1745430303731,0.0999,93724.0,93723.0,0.5600569]
[1745430303913,0.0979,93724.0,93723.0,0.5600569]
[1745430304355,0.0989,93724.0,93723.0,0.5600569]
[1745430304645,0.0979,93724.0,93723.0,0.5600569]
[1745430304856,0.0999,93724.0,93723.0,0.5600569]
[1745430305292,0.0999,93724.0,93723.0,0.55339479]
[1745430305687,0.0999,93724.0,93723.0,0.34]
[1745430305897,0.0999,93724.0,93723.0,0.55339479]
[1745430306735,0.0999,93724.0,93723.0,0.56005696]
[1745430307701,0.0999,93724.0,93723.0,0.6669471]
[1745430307916,0.0509,93724.0,93723.0,0.6669471]
[1745430308874,0.0509,93724.0,93723.0,0.45355231]
[1745430309026,0.0509,93724.0,93723.0,0.00666217]
[1745430309239,0.0996,93724.0,93723.0,0.00666217]
[1745430309446,0.0509,93724.0,93722.0,0.34]
[1745430309666,0.0487,93723.0,93722.0,0.34]
[1745430310078,0.0487,93723.0,93718.0,0.09812]
[1745430310788,0.0507,93723.0,93718.0,0.09812]
[1745430310980,0.0507,93723.0,93722.0,0.21339706]
[1745430311611,0.0517,93723.0,93722.0,0.21339706]
[1745430311810,0.0497,93723.0,93722.0,0.21339706]
[1745430312273,0.0517,93723.0,93722.0,0.21339706]
[1745430312498,0.0517,93723.0,93722.0,0.22005958]
[1745430313022,0.0537,93723.0,93722.0,0.22005958]
[1745430313441,0.0537,93723.0,93722.0,0.34666252]
[1745430313779,0.0537,93723.0,93722.0,0.56005958]
[1745430315275,0.0537,93723.0,93722.0,0.34666252]
[1745430315521,0.0537,93723.0,93722.0,0.56005958]
[1745430315694,0.0537,93723.0,93722.0,0.34666252]
[1745430316176,0.103,93723.0,93722.0,0.00666252]
[1745430317027,0.101,93723.0,93722.0,0.00666252]
[1745430317417,0.098,93723.0,93722.0,0.00666252]
[1745430317777,0.103,93723.0,93722.0,0.00666252]
[1745430318343,0.108,93723.0,93722.0,0.00666252]
[1745430318730,0.103,93723.0,93722.0,0.00666252]
[1745430319146,0.108,93723.0,93722.0,0.00666252]
[1745430319708,0.0955,93722.0,93714.0,0.34]
[1745430320421,0.0964,93722.0,93714.0,0.34]
[1745430320641,0.0964,93721.0,93714.0,0.34]
[1745430320846,0.10013476,93720.0,93712.0,0.34]
[1745430321079,0.0921,93718.0,93712.0,0.34]
[1745430321297,0.0921,93716.0,93687.0,0.09812]
[1745430321511,0.10689014,93715.0,93687.0,0.09812]
[1745430321683,0.0463,93710.0,93687.0,0.09812]
[1745430321939,0.11062564,93715.0,93690.0,0.21346967]
[1745430321940,0.0458,93709.0,93690.0,0.21346967]
[1745430322163,0.0495,93707.0,93696.0,0.34]
[1745430322373,0.0499,93706.0,93700.0,0.07976155]
[1745430322579,0.11062564,93715.0,93700.0,0.07976155]
[1745430322936,0.098,93705.0,93700.0,0.07976155]
[1745430323141,0.006,93709.0,93702.0,0.001]
[1745430323361,0.098,93708.0,93702.0,0.001]
[1745430323563,0.004,93706.0,93702.0,0.001]
[1745430323765,0.098,93705.0,93702.0,0.001]
[1745430323967,0.0963,93707.0,93702.0,0.001]
[1745430324299,0.0963,93704.0,93700.0,0.07976155]
[1745430324501,0.004,93705.0,93700.0,0.07976155]
[1745430324502,0.0963,93703.0,93700.0,0.07976155]
[1745430324756,0.004,93705.0,93700.0,0.07976155]
[1745430324757,0.0963,93704.0,93700.0,0.07976155]
[1745430325237,0.0963,93704.0,93686.0,0.0004247]
[1745430325238,0.049,93699.0,93687.0,0.34]
[1745430325454,0.0963,93699.0,93688.0,0.00013924]
[1745430325909,0.0963,93699.0,93689.0,0.34]
[1745430326828,0.0983,93699.0,93689.0,0.34]
[1745430327144,0.0963,93699.0,93689.0,0.34]
[1745430327464,0.0983,93699.0,93689.0,0.34]
[1745430327866,0.0483,93697.0,93688.0,0.00013924]
[1745430328068,0.10889014,93699.0,93688.0,0.00013924]
[1745430328069,0.0945,93695.0,93688.0,0.00013924]
[1745430328271,0.0945,93693.0,93688.0,0.00013924]
[1745430328785,0.0945,93693.0,93692.0,0.21346539]
[1745430328995,0.0945,93693.0,93692.0,0.55346539]
[1745430329436,0.0945,93693.0,93692.0,0.34]
[1745430329692,0.0975,93693.0,93692.0,0.34]
[1745430330872,0.0945,93693.0,93692.0,0.34]
[1745430331069,0.0985,93693.0,93692.0,0.34]
[1745430331294,0.1015,93693.0,93692.0,0.34]
[1745430351005,0.1015,93693.0,93688.0,0.00013924]
[1745430351438,0.00373618,93692.0,93688.0,0.00013924]
[1745430353046,0.0485,93691.0,93688.0,0.00013924]
[1745430354469,0.0505,93691.0,93688.0,0.00013924]
[1745430354683,0.0525,93691.0,93688.0,0.00013924]
[1745430357297,0.00373635,93690.0,93688.0,0.00013924]
[1745430358086,0.0916,93689.0,93688.0,0.00013924]
[1745430360165,0.0936,93689.0,93688.0,0.00013924]
[1745430360903,0.0956,93689.0,93688.0,0.00013924]
[1745430362367,0.0496,93689.0,93688.0,0.00013924]
[1745430363950,0.0985,93689.0,93688.0,0.00013924]
[1745430374062,0.0496,93689.0,93688.0,0.00013924]
[1745430374489,0.004,93689.0,93688.0,0.00013924]
[1745430377105,0.004,93689.0,93688.0,0.55361375]
[1745430377515,0.004,93689.0,93688.0,0.34]
[1745430377717,0.004,93689.0,93688.0,0.55347451]
[1745430377919,0.004,93689.0,93688.0,0.34]
[1745430378365,0.004,93689.0,93688.0,0.55347451]
[1745430384991,0.004,93689.0,93688.0,0.21347451]
[1745430389469,0.004,93689.0,93688.0,0.7382055]
[1745430389668,0.409,93742.0,93715.0,0.21341276]
[1745430389904,0.0478498,93727.0,93721.0,0.21339902]
[1745430390601,0.0478498,93727.0,93722.0,0.34]
[1745430390818,0.0008498,93727.0,93722.0,0.34]
[1745430391393,0.00106018,93723.0,93722.0,0.34]
[1745430391911,0.00606018,93723.0,93722.0,0.34]
[1745430392333,0.00806018,93723.0,93722.0,0.34]
[1745430392544,0.00606018,93723.0,93722.0,0.34]
[1745430392762,0.00106018,93723.0,93722.0,0.34]
[1745430392996,0.00206018,93723.0,93722.0,0.34]
[1745430394647,0.00106018,93723.0,93722.0,0.34]
[1745430395089,0.00106018,93723.0,93714.0,0.34]
[1745430395299,0.00106018,93723.0,93716.0,0.34]
[1745430395514,0.00206018,93723.0,93716.0,0.34]
[1745430395730,0.00106018,93723.0,93722.0,0.001]
[1745430396131,0.00206018,93723.0,93722.0,0.001]
[1745430396342,0.00206018,93723.0,93720.0,0.35067008]
[1745430396577,0.00206018,93723.0,93720.0,0.34]
[1745430396755,0.00206018,93723.0,93722.0,0.55339706]
[1745430397378,0.00106018,93723.0,93722.0,0.55339706]
[1745430397588,0.00106018,93723.0,93722.0,0.55439706]
[1745430398544,0.00206018,93723.0,93722.0,0.55439706]
[1745430402983,0.00206018,93723.0,93722.0,0.341]
[1745430404278,0.09506018,93723.0,93722.0,0.341]
[1745430404699,0.09506018,93723.0,93722.0,0.001]
[1745430410403,0.20195032,93723.0,93722.0,0.001]
[1745430410606,0.20668543,93723.0,93722.0,0.001]
[1745430410848,0.0985,93720.0,93688.0,0.09788]
[1745430411046,0.11062572,93719.0,93689.0,0.34]
[1745430411251,0.0466,93716.0,93689.0,0.35067361]
[1745430411502,0.0466,93713.0,93689.0,0.35067361]
[1745430411703,0.00373558,93712.0,93689.0,0.35067361]
[1745430411928,0.0466,93711.0,93689.0,0.35067361]
[1745430412120,0.0466,93711.0,93689.0,0.56414487]
[1745430412277,0.0466,93711.0,93691.0,0.35067338]
[1745430414115,0.0466,93711.0,93691.0,0.56413877]
[1745430414315,0.0486,93711.0,93692.0,0.34]
[1745430414881,0.0496,93711.0,93695.0,0.34]
[1745430415380,0.0486,93711.0,93695.0,0.34]
[1745430415600,0.0466,93711.0,93695.0,0.34]
[1745430415758,0.0476,93711.0,93695.0,0.34]
[1745430416135,0.0466,93711.0,93695.0,0.34]
[1745430416352,0.0486,93711.0,93697.0,0.34]
[1745430416771,0.0506,93711.0,93697.0,0.34]
[1745430417314,0.0486,93711.0,93697.0,0.21345352]
[1745430417541,0.0516,93711.0,93694.0,0.34]
[1745430417719,0.0466,93711.0,93697.0,0.34]
[1745430417863,0.0516,93711.0,93697.0,0.34]
[1745430418469,0.0496,93711.0,93697.0,0.34]
[1745430418683,0.0516,93711.0,93705.0,0.34]
[1745430418881,0.0516,93711.0,93707.0,0.34]
[1745430419383,0.0496,93711.0,93707.0,0.34]
[1745430419613,0.0516,93711.0,93707.0,0.34]
[1745430419840,0.0486,93711.0,93703.0,0.34]
[1745430420041,0.0546,93711.0,93706.0,0.22410405]
[1745430420253,0.008,93711.0,93707.0,0.34]
[1745430420469,0.008,93711.0,93708.0,0.01067144]
[1745430420668,0.011,93711.0,93707.0,0.34]
[1745430421115,0.015,93711.0,93707.0,0.341]
[1745430421316,0.015,93711.0,93702.0,0.21344261]
[1745430421465,0.015,93711.0,93708.0,0.21342862]
[1745430421466,0.004,93711.0,93708.0,0.21342862]
[1745430421691,0.009,93711.0,93708.0,0.21342862]
[1745430422199,0.005,93711.0,93708.0,0.22410006]
[1745430422422,0.008,93711.0,93709.0,0.21342568]
[1745430422814,0.008,93711.0,93707.0,0.21342999]
[1745430422944,0.003,93711.0,93707.0,0.21342999]
[1745430423159,0.003,93711.0,93706.0,0.21343313]
[1745430423359,0.008,93711.0,93697.0,0.0106727]
[1745430423569,0.00373512,93710.0,93697.0,0.0106727]
[1745430423811,0.00373512,93710.0,93701.0,0.34]
[1745430424025,0.006,93711.0,93701.0,0.34]
[1745430424274,0.005,93711.0,93708.0,0.001]
[1745430424685,0.008,93711.0,93708.0,0.001]
[1745430424839,0.0468,93714.0,93706.0,0.21343335]
[1745430425234,0.0468,93714.0,93702.0,0.21344261]
[1745430425463,0.00373505,93713.0,93701.0,0.34]
[1745430425685,0.003,93710.0,93702.0,0.21344261]
[1745430425886,0.003,93710.0,93701.0,0.34]
[1745430426089,0.00373505,93709.0,93694.0,0.34]
[1745430426294,0.0455,93709.0,93694.0,0.34]
[1745430427202,0.0455,93709.0,93693.0,0.34]
[1745430427454,0.05113557,93708.0,93693.0,0.34]
[1745430428018,0.0474,93708.0,93693.0,0.34]
[1745430428228,0.0474,93708.0,93699.0,0.34]
[1745430430098,0.0474,93708.0,93691.0,0.21346747]
[1745430430593,0.0504,93708.0,93694.0,0.34]
[1745430431034,0.0494,93708.0,93694.0,0.34]
[1745430431245,0.0504,93708.0,93694.0,0.34]
[1745430431395,0.0474,93708.0,93694.0,0.34]
[1745430431822,0.0484,93708.0,93694.0,0.34]
[1745430432029,0.0494,93708.0,93694.0,0.34]
[1745430432406,0.0494,93708.0,93693.0,0.34]
[1745430433241,0.0484,93708.0,93693.0,0.55346288]
[1745430433448,0.0474,93708.0,93693.0,0.55346288]
[1745430433850,0.0484,93708.0,93693.0,0.55346288]
[1745430435916,0.0484,93708.0,93693.0,0.34]
[1745430436477,0.0484,93708.0,93694.0,0.21346069]
[1745430436704,0.0484,93708.0,93694.0,0.21346084]
[1745430436892,0.0484,93708.0,93698.0,0.34]
[1745430437492,0.0474,93708.0,93698.0,0.34]
[1745430437714,0.0474,93708.0,93683.0,0.0978]
[1745430437715,0.04923548,93707.0,93683.0,0.0978]
[1745430437931,0.0455,93707.0,93696.0,0.01067281]
[1745430438143,0.0455,93707.0,93697.0,0.0106727]
[1745430438392,0.0455,93707.0,93697.0,0.34]
[1745430438592,0.0455,93707.0,93705.0,0.21343495]
[1745430438829,0.0455,93707.0,93705.0,0.34]
[1745430439030,0.0455,93707.0,93705.0,0.55343565]
[1745430439279,0.0455,93707.0,93705.0,0.34]
[1745430439934,0.0455,93707.0,93701.0,0.34]
[1745430440115,0.0475,93707.0,93701.0,0.34]
[1745430440315,0.0505,93707.0,93701.0,0.34]
[1745430440545,0.0485,93707.0,93701.0,0.34]
[1745430440759,0.0495,93707.0,93704.0,0.0106719]
[1745430440960,0.0455,93707.0,93703.0,0.22411205]
[1745430441130,0.0475,93707.0,93701.0,0.01067224]
[1745430441454,0.0505,93707.0,93704.0,0.0106719]
[1745430441614,0.0505,93707.0,93703.0,0.34]
[1745430442025,0.005,93707.0,93706.0,0.5534335]
[1745430442486,0.003,93707.0,93706.0,0.5534335]
[1745430442655,0.006,93707.0,93706.0,0.5534335]
[1745430442851,0.009,93707.0,93706.0,0.5534335]
[1745430443144,0.003,93707.0,93706.0,0.5534335]
[1745430443617,0.007,93707.0,93706.0,0.34]
[1745430443801,0.002,93707.0,93706.0,0.34]
[1745430444084,0.0456,93710.0,93707.0,0.34]
[1745430444716,0.0468,93709.0,93707.0,0.34]
[1745430445026,0.0468,93709.0,93701.0,0.34]
[1745430446328,0.0468,93709.0,93701.0,0.35067224]
[1745430446551,0.0478,93709.0,93701.0,0.56411663]
[1745430446844,0.0488,93709.0,93701.0,0.56411663]
[1745430447207,0.0488,93709.0,93703.0,0.01067201]
[1745430447411,0.0488,93709.0,93701.0,0.35067224]
[1745430447773,0.0488,93709.0,93701.0,0.34]
[1745430447977,0.0488,93709.0,93698.0,0.0978]
[1745430448482,0.0478,93709.0,93698.0,0.0978]
[1745430448692,0.0488,93709.0,93698.0,0.0978]
[1745430448894,0.0478,93709.0,93698.0,0.0978]
[1745430449248,0.0489,93708.0,93698.0,0.0978]
[1745430449425,0.0499,93707.0,93698.0,0.0978]
[1745430449655,0.0454,93704.0,93698.0,0.0978]
[1745430449875,0.00373562,93703.0,93698.0,0.0978]
[1745430450073,0.0454,93704.0,93698.0,0.0978]
[1745430451367,0.0454,93704.0,93691.0,0.34]
[1745430451565,0.04913569,93704.0,93691.0,0.34]
[1745430451979,0.004,93703.0,93691.0,0.34]
[1745430452910,0.0474,93704.0,93691.0,0.34]
[1745430453275,0.0528,93703.0,93691.0,0.34]
[1745430453569,0.0479,93701.0,93686.0,0.0004247]
[1745430453795,0.0479,93699.0,93686.0,0.0004247]
[1745430453927,0.0479,93697.0,93686.0,0.0004247]
[1745430454127,0.0939,93695.0,93686.0,0.0004247]
[1745430454320,0.10689014,93694.0,93686.0,0.0004247]
[1745430454513,0.0479,93693.0,93674.0,0.34]
[1745430454763,0.0479,93691.0,93674.0,0.34]
[1745430455620,0.0479,93691.0,93672.0,0.34]
[1745430455621,0.04799404,93691.0,93672.0,0.34]
[1745430455824,0.0479,93688.0,93668.0,0.31988]
[1745430455965,0.0939,93685.0,93668.0,0.31988]
[1745430456315,0.0474,93683.0,93674.0,0.004]
[1745430456630,0.0474,93681.0,93674.0,0.003]
[1745430456823,9.404e-05,93691.0,93672.0,0.002]
[1745430456824,0.0938,93679.0,93672.0,0.002]
[1745430457057,0.0946,93676.0,93664.0,0.0004247]
[1745430457283,0.0946,93674.0,93664.0,0.0004247]
[1745430457453,0.11062739,93673.0,93664.0,0.0004247]
[1745430457693,0.0946,93672.0,93664.0,0.0004247]
[1745430457893,0.0926,93670.0,93664.0,0.0004247]
[1745430458170,0.11062738,93669.0,93664.0,0.0004247]
[1745430458373,0.11062738,93669.0,93668.0,0.006]
[1745430458529,0.10689014,93669.0,93668.0,0.006]
[1745430458725,0.10689014,93669.0,93664.0,0.0004247]
[1745430461347,0.10889014,93669.0,93664.0,0.0004247]
[1745430461802,0.11062745,93669.0,93664.0,0.0004247]
[1745430462023,0.11362745,93669.0,93664.0,0.0004247]
[1745430462187,0.10989014,93669.0,93664.0,0.0004247]
[1745430463573,0.003,93669.0,93654.0,0.21355166]
[1745430463817,0.00373713,93668.0,93652.0,0.21355502]
[1745430463992,0.00373713,93668.0,93653.0,0.21355399]
[1745430464393,0.003,93669.0,93653.0,0.21355399]
[1745430464591,0.003,93669.0,93652.0,0.21355502]
[1745430464805,0.002,93669.0,93652.0,0.21355502]
[1745430465013,0.00373719,93668.0,93654.0,0.001]
[1745430465520,0.0926,93670.0,93652.0,0.21355618]
[1745430465521,0.0926,93670.0,93653.0,0.21355406]
[1745430465726,0.0926,93670.0,93654.0,0.21355199]
[1745430466313,0.0926,93670.0,93660.0,0.36845509]
[1745430467369,0.0926,93670.0,93654.0,0.21355201]
[1745430467664,0.0926,93670.0,93655.0,0.21354973]
[1745430467826,0.0926,93670.0,93657.0,0.21354517]
[1745430468237,0.0926,93670.0,93658.0,0.21354286]
[1745430468658,0.0936,93670.0,93658.0,0.21354286]
[1745430468903,0.0926,93670.0,93658.0,0.21354286]
[1745430469385,0.0926,93670.0,93661.0,0.21353544]
[1745430469802,0.0936,93670.0,93661.0,0.21353544]
[1745430470123,0.0936,93670.0,93662.0,0.21353314]
[1745430470638,0.0926,93670.0,93661.0,0.21353544]
[1745430470867,0.0926,93670.0,93658.0,0.21354286]
[1745430471278,0.0836,93670.0,93654.0,0.34]
[1745430471390,0.0836,93670.0,93657.0,0.21354447]
[1745430471590,0.0826,93670.0,93657.0,0.21354447]
[1745430471856,0.0836,93670.0,93659.0,0.21354061]
[1745430472052,0.0826,93670.0,93659.0,0.21354061]
[1745430472923,0.0836,93670.0,93659.0,0.21354061]
[1745430473343,0.0836,93670.0,93660.0,0.2135363]
[1745430473551,0.0836,93670.0,93659.0,0.21354061]
[1745430473750,0.0836,93670.0,93660.0,0.36845509]
[1745430473949,0.0836,93670.0,93664.0,0.21352885]
[1745430474342,0.0836,93670.0,93664.0,0.01067646]
[1745430474556,0.0467,93670.0,93669.0,0.21351781]
[1745430474864,0.001,93670.0,93669.0,0.55351781]
[1745430475122,0.04839404,93691.0,93680.0,0.55349274]
[1745430475346,9.404e-05,93691.0,93689.0,0.21347223]
[1745430475513,9.404e-05,93691.0,93686.0,0.34]
[1745430475725,9.404e-05,93691.0,93686.0,0.55347755]
[1745430475932,9.404e-05,93691.0,93686.0,0.5534776]
[1745430476145,9.404e-05,93691.0,93686.0,0.34]
[1745430476562,0.00309404,93691.0,93685.0,0.55347944]
[1745430476802,0.00309404,93691.0,93687.0,0.21347675]
[1745430476934,0.00309404,93691.0,93685.0,0.55347944]
[1745430477380,0.00309404,93691.0,93686.0,0.21347843]
[1745430477584,0.00309404,93691.0,93686.0,0.213479]
[1745430477842,0.00509404,93691.0,93686.0,0.213479]
[1745430478139,0.00509404,93691.0,93686.0,0.22149645]
[1745430478357,0.00509404,93691.0,93686.0,0.21347904]
[1745430478565,0.00709404,93691.0,93686.0,0.21347904]
[1745430479426,0.00709404,93691.0,93685.0,0.55347944]
[1745430479850,0.00709404,93691.0,93685.0,0.21348038]
[1745430480081,0.00709404,93691.0,93685.0,0.21348122]
[1745430480296,0.00209404,93691.0,93684.0,0.5534814]
[1745430480514,0.00209404,93691.0,93685.0,0.21348121]
[1745430480811,0.00209404,93691.0,93686.0,0.34]
[1745430481013,0.00409404,93691.0,93686.0,0.34]
[1745430481619,0.00209404,93691.0,93682.0,0.34]
[1745430481945,0.00409404,93691.0,93682.0,0.34]
[1745430482122,0.00209404,93691.0,93682.0,0.34]
[1745430482446,0.00409404,93691.0,93682.0,0.34]
[1745430482660,0.00209404,93691.0,93682.0,0.34]
[1745430483075,0.00409404,93691.0,93682.0,0.34]
[1745430483292,0.04903613,93690.0,93671.0,0.34]
[1745430483459,0.04903613,93690.0,93671.0,0.43764]
[1745430483673,0.04903613,93690.0,93671.0,0.34]
[1745430483870,0.04903613,93690.0,93672.0,0.01067554]
[1745430484075,0.04903613,93690.0,93673.0,0.35067543]
[1745430484292,0.0453,93690.0,93673.0,0.35067543]
[1745430484859,0.0453,93690.0,93673.0,0.34]
[1745430485068,0.00373641,93689.0,93673.0,0.34]
[1745430485262,0.00373641,93689.0,93672.0,0.35067554]
[1745430485634,0.00373641,93689.0,93673.0,0.001]
[1745430486034,0.00373641,93689.0,93673.0,0.002]
[1745430486630,0.0453,93690.0,93673.0,0.002]
[1745430486861,0.00373642,93689.0,93673.0,0.002]
[1745430487485,0.00373642,93689.0,93673.0,0.001]
[1745430488323,0.00373642,93689.0,93671.0,0.34]
[1745430489084,0.00373642,93689.0,93673.0,0.001]
[1745430489353,0.0453,93690.0,93680.0,0.34]
[1745430489809,0.04903627,93690.0,93680.0,0.34]
[1745430489982,0.0453,93690.0,93680.0,0.34]
[1745430490280,0.0453,93690.0,93673.0,0.001]
[1745430490581,0.0453,93690.0,93671.0,0.34]
[1745430490815,0.0453,93690.0,93671.0,0.341]
[1745430491026,0.00383046,93691.0,93671.0,0.001]
[1745430491027,0.0942,93685.0,93671.0,0.001]
[1745430491246,0.0942,93677.0,93671.0,0.001]
[1745430491477,0.0942,93677.0,93669.0,0.001]
[1745430491478,0.0931,93675.0,93669.0,0.001]
[1745430491686,0.11062729,93674.0,93673.0,0.001]
[1745430492303,0.11062729,93674.0,93669.0,0.001]
[1745430492516,0.11062729,93674.0,93671.0,0.001]
[1745430493352,0.30670917,93673.0,93671.0,0.001]
[1745430493561,0.20382766,93672.0,93671.0,0.001]
[1745430493761,0.11062766,93672.0,93669.0,0.001]
[1745430493968,0.0932,93671.0,93669.0,0.001]
[1745430494173,0.1106277,93670.0,93669.0,0.001]
[1745430494555,0.10689014,93670.0,93669.0,0.001]
[1745430495930,0.006,93670.0,93669.0,0.001]
[1745430496991,0.013,93670.0,93669.0,0.002]
[1745430499117,0.01673714,93670.0,93669.0,0.002]
[1745430499325,0.12362728,93670.0,93669.0,0.002]
[1745430499518,0.11989014,93670.0,93669.0,0.002]
[1745430502285,0.2190275,93670.0,93669.0,0.002]
[1745430502506,0.21529014,93670.0,93669.0,0.002]
[1745430508682,0.0627,93670.0,93669.0,0.002]
[1745430509993,0.0557,93670.0,93669.0,0.001]
[1745430510210,0.0607,93670.0,93669.0,0.002]
[1745430510417,0.005,93670.0,93669.0,0.21551781]
[1745430510539,0.005,93670.0,93669.0,0.002]
[1745430510743,0.01,93670.0,93669.0,0.002]
[1745430510990,0.01,93670.0,93669.0,0.001]
[1745430514073,0.1081,93670.0,93669.0,0.001]
[1745430517655,0.0591,93670.0,93669.0,0.001]
[1745430517874,0.01,93670.0,93669.0,0.001]
[1745430518768,0.02803129,93681.0,93669.0,0.001]
[1745430519186,0.10689014,93680.0,93669.0,0.001]
[1745430519595,0.10689014,93680.0,93665.0,0.55352664]
[1745430520011,0.10689014,93680.0,93669.0,0.001]
[1745430520416,0.11189014,93680.0,93665.0,0.55352664]
[1745430520654,0.11789014,93680.0,93669.0,0.001]
[1745430520871,0.011,93680.0,93671.0,0.35067566]
[1745430521097,0.011,93680.0,93679.0,0.21349502]
[1745430521308,0.011,93680.0,93679.0,0.55349502]
[1745430521968,0.014,93680.0,93679.0,0.55349502]
[1745430522186,0.003,93680.0,93679.0,0.56151243]
[1745430522367,0.0498,93695.0,93683.0,0.22415932]
[1745430522657,0.0498,93695.0,93683.0,0.2134852]
[1745430523076,0.0496,93696.0,93690.0,0.55346995]
[1745430523283,0.0496,93706.0,93690.0,0.55346995]
[1745430523484,0.0496,93706.0,93690.0,0.34]
[1745430523638,0.0496,93706.0,93690.0,0.55346995]
[1745430525466,0.00209404,93691.0,93690.0,0.55346995]
[1745430525685,0.00209404,93691.0,93690.0,0.34]
[1745430526825,0.04889404,93691.0,93690.0,0.34]
[1745430527375,0.04889404,93691.0,93673.0,0.0976]
[1745430527557,0.00373633,93690.0,93674.0,0.34]
[1745430527778,0.04889404,93691.0,93674.0,0.34]
[1745430528195,0.04689404,93691.0,93674.0,0.34]
[1745430529232,0.00373633,93690.0,93674.0,0.343]
[1745430529453,0.00373633,93690.0,93674.0,0.346]
[1745430530085,0.00373633,93690.0,93674.0,0.343]
[1745430530672,0.0481,93689.0,93674.0,0.343]
[1745430530877,0.00373633,93688.0,93674.0,0.343]
[1745430531276,0.00373633,93688.0,93674.0,0.346]
[1745430531488,0.0481,93689.0,93674.0,0.346]
[1745430531861,0.0481,93689.0,93675.0,0.21350413]
[1745430532967,0.0481,93689.0,93677.0,0.34]
[1745430535354,0.0481,93689.0,93675.0,0.21350413]
[1745430535355,0.0481,93689.0,93675.0,0.21350379]
[1745430536118,0.0481,93689.0,93677.0,0.34]
[1745430538137,0.0481,93689.0,93675.0,0.34]
[1745430538287,0.0481,93689.0,93673.0,0.0976]
[1745430538696,0.0481,93689.0,93675.0,0.34]
[1745430538896,0.0481,93689.0,93675.0,0.338989]
[1745430539726,0.05183631,93689.0,93675.0,0.338989]
[1745430539924,0.05183631,93689.0,93673.0,0.0976]
[1745430541144,0.05183631,93689.0,93673.0,0.0986]
[1745430541343,0.05183631,93689.0,93673.0,0.31210833]
[1745430541549,0.0481,93689.0,93674.0,0.01067532]
[1745430541970,0.0481,93689.0,93675.0,0.0106752]
[1745430542183,0.0481,93689.0,93675.0,0.21350344]
[1745430542399,0.0481,93689.0,93680.0,0.34]
[1745430544636,0.0491,93689.0,93680.0,0.34]
[1745430544955,0.0501,93689.0,93680.0,0.34]
[1745430548137,0.0501,93689.0,93679.0,0.36845509]
[1745430548935,0.0491,93689.0,93679.0,0.13327452]
[1745430549169,0.0501,93689.0,93679.0,0.13327452]
[1745430549370,0.0491,93689.0,93679.0,0.13327452]
[1745430550782,0.0501,93689.0,93679.0,0.13327452]
[1745430551241,0.0501,93689.0,93681.0,0.22416426]
[1745430551442,0.0501,93689.0,93680.0,0.22416539]
[1745430551641,0.0501,93689.0,93688.0,0.21347451]
[1745430551786,0.002,93689.0,93688.0,0.21347451]
[1745430551984,0.001,93689.0,93688.0,0.21347451]
[1745430552193,9.404e-05,93691.0,93689.0,0.21347107]
[1745430552399,0.001,93689.0,93688.0,0.21347451]
[1745430553603,0.002,93689.0,93688.0,0.21347451]
[1745430553960,0.001,93689.0,93688.0,0.21347451]